[Event "GER-ch Youth-U14w 2022"]
[Site "Willingen"]
[Date "2022.06.11"]
[Round "9.10"]
[White "Bursan, Ana-Maria"]
[Black "Flierl, Veronika"]
[Result "1-0"]
[ECO "B12"]
[WhiteElo "1329"]
[BlackElo "1427"]
[Annotator "NA RC COMBH"]
[PlyCount "99"]
[EventDate "2022.06.05"]
[EventType "swiss"]
[EventRounds "9"]
[EventCountry "GER"]
[SourceTitle "playchess.com"]
[Source "ChessBase"]
[SourceQuality "1"]
[TimeControl "40/4500+30:900+30"]

1. e4 {[%emt 0:00:00]} c6 {[%emt 0:00:00]} 2. d4 {[%emt 0:00:00]} d5 {[%emt 0:00:00]} 3. e5 {[%emt 0:00:00]} Bf5 {[%emt 0:00:00]} 4. Bd3 {[%emt 0:00:00]} Bxd3 {[%emt 0:00:00]} 5. Qxd3 {[%emt 0:00:00]} e6 {[%emt 0:00:00]} 6. a3 {[%emt 0:00:00]} Nd7 {[%emt 0:00:00]} 7. Nf3 {[%emt 0:00:00]} Qb6 {[%emt 0:00:00]} 8. b4 {[%emt 0:04:00]} a5 {[%emt 0:03:59]} 9. bxa5 {[%emt 0:06:13]} Qxa5+ {[%emt 0:00:57]} 10. Bd2 {[%emt 0:02:08]} Qc7 {[%emt 0:01:18]} 11. O-O {[%emt 0:01:17]} Ne7 {[%emt 0:01:26]} 12. Re1 {[%emt 0:08:32]} Nf5 {[%emt 0:00:42]} 13. Bg5 {[%emt 0:01:35]} h6 {[%emt 0:01:24]} 14. Bh4 {[%emt 0:03:33]} c5 {[%emt 0:12:24]} 15. c4 {[%emt 0:06:47]} Qc6 {[%emt 0:10:28]} 16. cxd5 {[%emt 0:07:22]} Qxd5 {[%emt 0:01:04]} 17. Nc3 {[%emt 0:01:18]} Qc6 {[%emt 0:00:19]} 18. d5 {[%emt 0:01:45]} Qa6 {[%emt 0:01:20]} 19. Nb5 {[%emt 0:03:14]} Rc8 {[%emt 0:01:47]} 20. d6 {[%emt 0:02:10]} Qb6 {[%emt 0:02:32]} 21. Rab1 {[%emt 0:01:19]} Qa5 {[%emt 0:02:24]} 22. Nc7+ {[%emt 0:05:40]} Rxc7 {[%emt 0:02:26]} 23. dxc7 {[%emt 0:00:21]} Qxc7 {[%emt 0:00:11]} 24. Qe4 {[%emt 0:02:22]} Nxh4 {[%emt 0:00:51]} 25. Nxh4 {[%emt 0:01:52]} Nb6 {[%emt 0:01:35]} 26. Red1 {[%emt 0:01:47]} Be7 {[%emt 0:01:43]} 27. Rxb6 {[%emt 0:05:24]} O-O {[%emt 0:03:00]} 28. Rxb7 {[%emt 0:00:22]} Qa5 {[%emt 0:00:48]} 29. Rxe7 {[%emt 0:00:35]} Qc3 {[%emt 0:01:43]} 30. f4 {[%emt 0:01:57]} Qxa3 {[%emt 0:02:19]} 31. Red7 {[%emt 0:01:06]} Qa5 {[%emt 0:01:52]} 32. f5 {[%emt 0:00:36]} Qb6 {[%emt 0:01:04]} 33. R7d6 {[%emt 0:00:33]} Qa7 {[%emt 0:00:59]} 34. fxe6 {[%emt 0:00:50]} fxe6 {[%emt 0:00:54]} 35. Qc4 {[%emt 0:00:30]} Kh7 {[%emt 0:02:18]} 36. Rxe6 {[%emt 0:00:32]} Qf7 {[%emt 0:05:35]} 37. Qe4+ {[%emt 0:00:14]} Kg8 {[%emt 0:00:43]} 38. Qc4 {[%emt 0:03:44]} Qf2+ {[%emt 0:01:44]} 39. Kh1 {[%emt 0:00:15]} Kh7 {[%emt 0:03:23]} 40. Qe4+ {[%emt 0:00:10]} Kg8 {[%emt 0:00:26]} 41. Qe1 {[%emt 0:17:04]} Qf7 {[%emt 0:15:48]} 42. Rc6 {[%emt 0:00:23]} Qc4 {[%emt 0:01:37]} 43. h3 {[%emt 0:01:45]} Re8 {[%emt 0:01:36]} 44. e6 {[%emt 0:01:27]} Qb5 {[%emt 0:02:02]} 45. Rc7 {[%emt 0:01:37]} Qb6 {[%emt 0:00:42]} 46. Qg3 {[%emt 0:01:26]} g5 {[%emt 0:02:18]} 47. Nf5 {[%emt 0:00:49]} Qxe6 {[%emt 0:01:34]} 48. Qc3 {[%emt 0:03:19]} Qg6 {[%emt 0:00:58]} 49. Rg7+ {[%emt 0:00:58]} Qxg7 {[%emt 0:00:16]} 50. Qxg7# 1-0

[Event "GER-ch Youth-U14w 2022"]
[Site "Willingen"]
[Date "2022.06.11"]
[Round "9.11"]
[White "Margaryan, Sofia"]
[Black "Hoffmann, Sophia"]
[Result "1/2-1/2"]
[ECO "D18"]
[WhiteElo "1181"]
[BlackElo "1289"]
[Annotator "NA RC COMBH"]
[PlyCount "69"]
[EventDate "2022.06.05"]
[EventType "swiss"]
[EventRounds "9"]
[EventCountry "GER"]
[SourceTitle "playchess.com"]
[Source "ChessBase"]
[SourceQuality "1"]
[TimeControl "40/4500+30:900+30"]

1. d4 {[%emt 0:00:00]} d5 {[%emt 0:00:00]} 2. c4 {[%emt 0:00:00]} c6 {[%emt 0:00:00]} 3. Nc3 {[%emt 0:00:00]} dxc4 {[%emt 0:00:00]} 4. a4 {[%emt 0:00:00]} Nf6 {[%emt 0:00:00]} 5. Nf3 {[%emt 0:00:00]} Bf5 {[%emt 0:00:00]} 6. e3 {[%emt 0:00:00]} e6 {[%emt 0:00:00]} 7. Bxc4 {[%emt 0:00:00]} Nbd7 {[%emt 0:00:00]} 8. O-O {[%emt 0:00:00]} Bb4 {[%emt 0:00:00]} 9. Bd2 {[%emt 0:00:00]} O-O {[%emt 0:00:00]} 10. Qe2 {[%emt 0:00:00]} Bxc3 {[%emt 0:00:00]} 11. bxc3 {[%emt 0:00:02]} Re8 {[%emt 0:00:00]} 12. Bd3 {[%emt 0:00:34]} Bxd3 {[%emt 0:00:00]} 13. Qxd3 {[%emt 0:00:06]} e5 {[%emt 0:00:00]} 14. Qe2 {[%emt 0:02:28]} e4 {[%emt 0:00:00]} 15. Ne1 {[%emt 0:00:14]} Rc8 {[%emt 0:00:16]} 16. Nc2 {[%emt 0:03:08]} c5 {[%emt 0:02:31]} 17. Na3 {[%emt 0:00:09]} Nb6 {[%emt 0:05:30]} 18. Rfb1 {[%emt 0:08:16]} Qd5 {[%emt 0:08:05]} 19. c4 {[%emt 0:01:55]} Qd7 {[%emt 0:01:58]} 20. a5 {[%emt 0:00:12]} Na8 {[%emt 0:02:10]} 21. d5 {[%emt 0:00:16]} b6 {[%emt 0:08:28]} 22. axb6 {[%emt 0:01:58]} axb6 {[%emt 0:00:54]} 23. Nb5 {[%emt 0:00:18]} Nc7 {[%emt 0:01:05]} 24. Nxc7 {[%emt 0:05:32]} Qxc7 {[%emt 0:00:32]} 25. Bc3 {[%emt 0:00:27]} Nd7 {[%emt 0:01:31]} 26. h3 {[%emt 0:06:05]} Ra8 {[%emt 0:05:34]} 27. Rxa8 {[%emt 0:02:01]} Rxa8 {[%emt 0:00:07]} 28. Qb2 {[%emt 0:00:11]} f6 {[%emt 0:01:22]} 29. Ra1 {[%emt 0:00:44]} Rb8 {[%emt 0:04:33]} 30. Qb5 {[%emt 0:04:15]} Ne5 {[%emt 0:05:21]} 31. Bxe5 {[%emt 0:00:16]} Qxe5 {[%emt 0:00:20]} 32. Ra7 {[%emt 0:00:42]} Qd6 {[%emt 0:01:15]} 33. Rd7 {[%emt 0:10:27]} Qe5 {[%emt 0:02:06]} 34. d6 {[%emt 0:11:07]} Ra8 {[%emt 0:05:12]} 35. g3 {[%emt 0:00:17]} 1/2-1/2

[Event "GER-ch Youth-U14w 2022"]
[Site "Willingen"]
[Date "2022.06.11"]
[Round "9.12"]
[White "Brandt, Greta"]
[Black "Heuberger, Sandra"]
[Result "1/2-1/2"]
[ECO "A15"]
[WhiteElo "1458"]
[BlackElo "1101"]
[Annotator "NA RC COMBH"]
[PlyCount "87"]
[EventDate "2022.06.05"]
[EventType "swiss"]
[EventRounds "9"]
[EventCountry "GER"]
[SourceTitle "playchess.com"]
[Source "ChessBase"]
[SourceQuality "1"]
[TimeControl "40/4500+30:900+30"]

1. c4 {[%emt 0:00:00]} Nf6 {[%emt 0:00:00]} 2. g3 {[%emt 0:00:00]} g6 {[%emt 0:00:00]} 3. Bg2 {[%emt 0:00:00]} Bg7 {[%emt 0:00:00]} 4. Nc3 {[%emt 0:00:00]} O-O {[%emt 0:00:00]} 5. e4 {[%emt 0:00:00]} d6 {[%emt 0:00:00]} 6. Nge2 {[%emt 0:00:00]} e5 {[%emt 0:00:00]} 7. O-O {[%emt 0:00:00]} Nc6 {[%emt 0:00:00]} 8. d3 {[%emt 0:00:00]} Nd4 {[%emt 0:00:00]} 9. h3 {[%emt 0:00:00]} Nd7 {[%emt 0:02:46]} 10. Nxd4 {[%emt 0:00:39]} exd4 {[%emt 0:00:31]} 11. Ne2 {[%emt 0:00:40]} a5 {[%emt 0:03:51]} 12. b3 {[%emt 0:05:41]} c5 {[%emt 0:06:27]} 13. Bf4 {[%emt 0:03:06]} Ne5 {[%emt 0:04:47]} 14. Kh2 {[%emt 0:03:49]} Re8 {[%emt 0:04:36]} 15. Qd2 {[%emt 0:03:51]} Qc7 {[%emt 0:05:49]} 16. Rad1 {[%emt 0:04:01]} Bd7 {[%emt 0:13:09]} 17. Bh6 {[%emt 0:04:00]} Rab8 {[%emt 0:05:00]} 18. Bxg7 {[%emt 0:00:43]} Kxg7 {[%emt 0:00:33]} 19. f4 {[%emt 0:00:33]} Nc6 {[%emt 0:00:50]} 20. f5 {[%emt 0:03:45]} Ne5 {[%emt 0:07:15]} 21. f6+ {[%emt 0:00:32]} Kh8 {[%emt 0:00:26]} 22. Qh6 {[%emt 0:00:53]} Rg8 {[%emt 0:00:17]} 23. Rf4 {[%emt 0:01:16]} g5 {[%emt 0:02:40]} 24. Rf2 {[%emt 0:04:14]} Bg4 {[%emt 0:04:57]} 25. Kh1 {[%emt 0:02:39]} Rg6 {[%emt 0:01:42]} 26. Qxg6 {[%emt 0:00:03]} hxg6 {[%emt 0:00:59]} 27. hxg4 {[%emt 0:00:04]} Nxg4 {[%emt 0:00:28]} 28. Rf3 {[%emt 0:00:05]} Re8 {[%emt 0:05:54]} 29. Bh3 {[%emt 0:01:04]} Qd7 {[%emt 0:03:07]} 30. Kg2 {[%emt 0:01:16]} Kg8 {[%emt 0:01:00]} 31. Re1 {[%emt 0:02:44]} Ne3+ {[%emt 0:02:20]} 32. Rxe3 {[%emt 0:00:29]} g4 {[%emt 0:00:39]} 33. Bxg4 {[%emt 0:00:37]} Qxg4 {[%emt 0:00:17]} 34. Rf3 {[%emt 0:00:04]} Qg5 {[%emt 0:02:43]} 35. Rf4 {[%emt 0:01:33]} Re6 {[%emt 0:02:09]} 36. Ref1 {[%emt 0:00:42]} Kf8 {[%emt 0:02:02]} 37. Ng1 {[%emt 0:01:07]} Ke8 {[%emt 0:02:31]} 38. Nh3 {[%emt 0:00:55]} Qh6 {[%emt 0:01:30]} 39. g4 {[%emt 0:00:41]} g5 {[%emt 0:01:36]} 40. Rf5 {[%emt 0:00:03]} Re5 {[%emt 0:01:54]} 41. Rxe5+ {[%emt 0:15:12]} dxe5 {[%emt 0:15:27]} 42. Rf5 {[%emt 0:00:08]} Kd7 {[%emt 0:00:00]} 43. Rxe5 {[%emt 0:00:00]} Kc6 {[%emt 0:00:00]} 44. Rxg5 1/2-1/2

[Event "GER-ch Youth-U14w 2022"]
[Site "Willingen"]
[Date "2022.06.11"]
[Round "9.13"]
[White "Marrufo, Emilia"]
[Black "Steinlechner, Katja"]
[Result "0-1"]
[ECO "D00"]
[WhiteElo "998"]
[BlackElo "1317"]
[Annotator "NA RC COMBH"]
[PlyCount "110"]
[EventDate "2022.06.05"]
[EventType "swiss"]
[EventRounds "9"]
[EventCountry "GER"]
[SourceTitle "playchess.com"]
[Source "ChessBase"]
[SourceQuality "1"]
[TimeControl "40/4500+30:900+30"]

1. d4 {[%emt 0:00:00]} d5 {[%emt 0:00:00]} 2. Bf4 {[%emt 0:00:00]} Nf6 {[%emt 0:00:00]} 3. Nc3 {[%emt 0:00:00]} Bf5 {[%emt 0:00:00]} 4. e3 {[%emt 0:00:00]} c6 {[%emt 0:00:00]} 5. f3 {[%emt 0:00:00]} e6 {[%emt 0:00:00]} 6. h4 {[%emt 0:00:00]} h5 {[%emt 0:08:12]} 7. Be2 {[%emt 0:01:20]} Bd6 {[%emt 0:06:56]} 8. g4 {[%emt 0:03:37]} Bxf4 {[%emt 0:07:11]} 9. exf4 {[%emt 0:01:47]} Bg6 {[%emt 0:03:00]} 10. Qd2 {[%emt 0:02:15]} Qc7 {[%emt 0:03:30]} 11. Nh3 {[%emt 0:03:51]} hxg4 {[%emt 0:05:48]} 12. fxg4 {[%emt 0:00:42]} Rxh4 {[%emt 0:01:22]} 13. O-O-O {[%emt 0:02:44]} Nbd7 {[%emt 0:07:24]} 14. Rde1 {[%emt 0:05:04]} O-O-O {[%emt 0:03:44]} 15. Nf2 {[%emt 0:05:49]} Rdh8 {[%emt 0:02:45]} 16. Rhg1 {[%emt 0:07:41]} c5 {[%emt 0:06:07]} 17. a3 {[%emt 0:07:33]} cxd4 {[%emt 0:06:08]} 18. Qxd4 {[%emt 0:01:29]} Qb6 {[%emt 0:02:30]} 19. Qxb6 {[%emt 0:00:47]} Nxb6 {[%emt 0:00:45]} 20. Nd3 {[%emt 0:01:12]} Bxd3 {[%emt 0:02:30]} 21. cxd3 {[%emt 0:00:17]} a6 {[%emt 0:02:54]} 22. f5 e5 23. g5 {[%emt 0:03:34]} Nh5 {[%emt 0:04:53]} 24. Bxh5 {[%emt 0:00:59]} R8xh5 {[%emt 0:02:17]} 25. Rxe5 {[%emt 0:01:04]} d4 {[%emt 0:01:29]} 26. Nd1 {[%emt 0:00:22]} Rh1 {[%emt 0:01:43]} 27. Rxh1 {[%emt 0:00:10]} Rxh1 {[%emt 0:00:07]} 28. Re8+ {[%emt 0:00:15]} Kd7 {[%emt 0:00:39]} 29. Rg8 {[%emt 0:00:17]} Rf1 {[%emt 0:00:56]} 30. Rxg7 Rxf5 {[%emt 0:00:59]} 31. g6 {[%emt 0:01:37]} Ke6 {[%emt 0:01:49]} 32. Rg8 {[%emt 0:02:18]} fxg6 {[%emt 0:00:56]} 33. Rxg6+ {[%emt 0:00:09]} Rf6 {[%emt 0:00:11]} 34. Rg4 {[%emt 0:00:31]} Ke5 {[%emt 0:01:48]} 35. Rg7 {[%emt 0:00:22]} Na4 {[%emt 0:01:11]} 36. Rxb7 {[%emt 0:01:20]} Nc5 {[%emt 0:00:33]} 37. Kc2 {[%emt 0:00:50]} Nxb7 {[%emt 0:00:09]} 38. b4 {[%emt 0:00:20]} a5 {[%emt 0:01:27]} 39. Kb3 {[%emt 0:00:43]} axb4 {[%emt 0:00:20]} 40. Kxb4 {[%emt 0:00:12]} Rf3 {[%emt 0:01:15]} 41. Kc4 {[%emt 0:15:13]} Nd6+ {[%emt 0:15:42]} 42. Kc5 {[%emt 0:00:27]} Rxd3 {[%emt 0:00:45]} 43. Nf2 {[%emt 0:00:17]} Rxa3 {[%emt 0:00:38]} 44. Ng4+ {[%emt 0:00:54]} Ke6 {[%emt 0:00:00]} 45. Nh6 {[%emt 0:00:00]} d3 {[%emt 0:00:00]} 46. Ng4 {[%emt 0:00:00]} d2 {[%emt 0:00:00]} 47. Nf2 {[%emt 0:00:00]} Ne4+ 48. Nxe4 {[%emt 0:00:00]} d1=Q {[%emt 0:00:00]} 49. Kb4 {[%emt 0:00:00]} Qb3+ {[%emt 0:00:00]} 50. Kc5 {[%emt 0:00:00]} Qd5+ {[%emt 0:00:00]} 51. Kb4 {[%emt 0:00:00]} Qxe4+ {[%emt 0:00:00]} 52. Kxa3 {[%emt 0:00:00]} Qb1 {[%emt 0:00:00]} 53. Ka4 {[%emt 0:00:00]} Kd6 {[%emt 0:00:00]} 54. Ka3 {[%emt 0:00:00]} Kc5 {[%emt 0:00:00]} 55. Ka4 {[%emt 0:00:00]} Qb4# 0-1

[Event "GER-ch Youth-U14w 2022"]
[Site "Willingen"]
[Date "2022.06.11"]
[Round "9.14"]
[White "Funke, Luise"]
[Black "Göb, Franziska"]
[Result "0-1"]
[ECO "C54"]
[WhiteElo "970"]
[BlackElo "1362"]
[Annotator "NA RC COMBH"]
[PlyCount "74"]
[EventDate "2022.06.05"]
[EventType "swiss"]
[EventRounds "9"]
[EventCountry "GER"]
[SourceTitle "playchess.com"]
[Source "ChessBase"]
[SourceQuality "1"]
[TimeControl "40/4500+30:900+30"]

1. e4 {[%emt 0:00:00]} e5 {[%emt 0:00:00]} 2. Nf3 {[%emt 0:00:00]} Nc6 {[%emt 0:00:00]} 3. Bc4 {[%emt 0:00:00]} Bc5 {[%emt 0:00:00]} 4. c3 {[%emt 0:00:00]} Nf6 {[%emt 0:00:00]} 5. d4 {[%emt 0:00:00]} exd4 {[%emt 0:00:00]} 6. e5 {[%emt 0:00:00]} d5 {[%emt 0:00:00]} 7. Bb5 {[%emt 0:00:00]} Ne4 {[%emt 0:00:00]} 8. cxd4 {[%emt 0:00:00]} Bb6 {[%emt 0:00:00]} 9. Bxc6+ {[%emt 0:00:00]} bxc6 {[%emt 0:00:00]} 10. O-O {[%emt 0:00:00]} O-O {[%emt 0:00:00]} 11. Nc3 {[%emt 0:00:00]} Bg4 {[%emt 0:00:00]} 12. Qd3 {[%emt 0:00:00]} Qd7 {[%emt 0:00:00]} 13. Nxe4 {[%emt 0:00:00]} Bxf3 {[%emt 0:00:00]} 14. Qxf3 {[%emt 0:00:00]} Bxd4 {[%emt 0:00:00]} 15. Bh6 {[%emt 0:00:00]} dxe4 {[%emt 0:03:42]} 16. Qxe4 {[%emt 0:00:00]} gxh6 {[%emt 0:02:38]} 17. Rad1 {[%emt 0:00:00]} c5 {[%emt 0:01:11]} 18. b4 {[%emt 0:00:00]} Qe6 {[%emt 0:02:03]} 19. Rd3 {[%emt 0:00:00]} Bxe5 {[%emt 0:01:28]} 20. Re1 {[%emt 0:00:00]} Rfe8 {[%emt 0:02:03]} 21. Rde3 {[%emt 0:00:00]} Qxa2 {[%emt 0:01:56]} 22. bxc5 {[%emt 0:00:00]} Bxh2+ {[%emt 0:00:49]} 23. Kxh2 {[%emt 0:00:00]} Rxe4 {[%emt 0:00:09]} 24. Rxe4 {[%emt 0:00:27]} Qxf2 {[%emt 0:00:55]} 25. c6 {[%emt 0:02:32]} a5 {[%emt 0:01:07]} 26. R1e2 {[%emt 0:00:30]} Qf5 {[%emt 0:02:15]} 27. g4 {[%emt 0:02:47]} Qf6 {[%emt 0:00:49]} 28. Rc2 {[%emt 0:03:00]} Qd6+ {[%emt 0:00:39]} 29. Kh3 {[%emt 0:00:57]} Qd3+ {[%emt 0:00:15]} 30. Kh4 {[%emt 0:00:31]} Qxe4 {[%emt 0:00:12]} 31. Rc5 {[%emt 0:02:37]} Qe7+ {[%emt 0:00:16]} 32. Kh3 {[%emt 0:00:16]} Qxc5 {[%emt 0:00:07]} 33. Kh4 {[%emt 0:00:33]} Qf2+ {[%emt 0:00:15]} 34. Kh5 {[%emt 0:00:43]} Rd8 {[%emt 0:00:15]} 35. g5 {[%emt 0:00:46]} Rd5 {[%emt 0:01:07]} 36. Kg4 {[%emt 0:00:38]} Rxg5+ {[%emt 0:00:18]} 37. Kh3 {[%emt 0:00:22]} Qg3# 0-1

[Event "GER-ch Youth-U14w 2022"]
[Site "Willingen"]
[Date "2022.06.11"]
[Round "9.15"]
[White "Eichhorn, Mathilda"]
[Black "Lorenz, Rebecca"]
[Result "1-0"]
[ECO "C42"]
[WhiteElo "1330"]
[BlackElo "733"]
[Annotator "NA COMBH RC"]
[PlyCount "49"]
[EventDate "2022.06.05"]
[EventType "swiss"]
[EventRounds "9"]
[EventCountry "GER"]
[SourceTitle "playchess.com"]
[Source "ChessBase"]
[SourceQuality "1"]
[TimeControl "40/4500+30:900+30"]

1. e4 {[%emt 0:00:00]} e5 {[%emt 0:00:00]} 2. Nf3 {[%emt 0:00:00]} Nf6 {[%emt 0:00:00]} 3. Nc3 {[%emt 0:00:00]} Bc5 {[%emt 0:00:00]} 4. Bc4 {[%emt 0:00:00]} d6 {[%emt 0:00:00]} 5. h3 {[%emt 0:00:00]} O-O {[%emt 0:00:00]} 6. d3 {[%emt 0:00:00]} Nc6 {[%emt 0:00:00]} 7. Bg5 {[%emt 0:00:00]} Qe7 {[%emt 0:00:00]} 8. Nd5 {[%emt 0:00:00]} Qd8 {[%emt 0:00:00]} 9. Qd2 {[%emt 0:02:58]} Be6 {[%emt 0:00:00]} 10. Bxf6 {[%emt 0:11:57]} gxf6 {[%emt 0:00:22]} 11. Qh6 {[%emt 0:05:33]} Bxd5 {[%emt 0:02:57]} 12. Bxd5 {[%emt 0:00:30]} Nb4 {[%emt 0:00:46]} 13. Bb3 {[%emt 0:00:47]} Qe7 {[%emt 0:02:22]} 14. g4 {[%emt 0:03:45]} Rfd8 {[%emt 0:05:13]} 15. a3 {[%emt 0:02:14]} Nc6 {[%emt 0:02:14]} 16. g5 {[%emt 0:01:05]} fxg5 {[%emt 0:01:01]} 17. Nxg5 {[%emt 0:00:13]} Qxg5 {[%emt 0:04:13]} 18. Qxg5+ {[%emt 0:00:53]} Kf8 {[%emt 0:00:44]} 19. Qf5 {[%emt 0:00:30]} Rd7 {[%emt 0:00:28]} 20. Qxd7 {[%emt 0:00:14]} Nd8 {[%emt 0:00:33]} 21. Rg1 {[%emt 0:00:42]} Bb6 {[%emt 0:01:13]} 22. O-O-O {[%emt 0:00:54]} h6 {[%emt 0:01:07]} 23. Rg2 {[%emt 0:00:18]} c6 {[%emt 0:02:00]} 24. Qxd6+ {[%emt 0:00:20]} Ke8 {[%emt 0:00:39] Check Result:?ev?} 25. Rg8# 1-0